{"text_format":"1","workbook":"xlsx","n_sheets":1,"sheets":["Voorbeeld"],"not_rendered":{"charts":0,"images":0,"macros":1,"external_links":0,"defined_names":0,"comments":0,"pivot_tables":0},"unopened":[],"bounds":{"document_bytes":16777216,"sheet_cells":100000,"rows_first":2000,"rows_last":500,"rows_between":2000,"halvings":0,"cell_chars":16384,"cell_head_chars":4096},"cells_cut":0,"cells_raw":0,"read":"whole","date_system":"1900"}

{"sheet":"Voorbeeld","index":0,"n_rows":22,"n_cols":5,"rows_kept":22,"cut":false,"hidden":false,"merged":[]}
["hulpkolom","Factuurnummer","Bedrijf","Item"]
[{"$f":"IF($C2<>\"\",(CONCATENATE(TEXT(NOW(),\"JJJJ\"),TEXT(WEEKNUM(NOW()),\"##\"),TEXT(ROW(A2),\"##\"))),\"-\")","v":"2020342"},"2020342","TimeShare"]
[{"$f":"IF($C3<>\"\",(CONCATENATE(TEXT(NOW(),\"JJJJ\"),TEXT(WEEKNUM(NOW()),\"##\"),TEXT(ROW(A3),\"##\"))),\"-\")","v":"2020343"},"2020343","Duplo"]
["2020344",null,"Haarsma"]
["2020345","2020345","Kippensoep"]
["2020346",null,"Sleutel"]
["-"]
["-"]
["-"]
["-"]
["-"]
["-"]
["-",null,null,null,"Foutcontrole uitgeschakeld"]
["-",null,null,null,"Macro's toegestaan"]
["-",null,null,null,"Verwijder geen regels !"]
["-",null,null,null,"Beveiligingssleutel: 2020"]
["-"]
["-"]
["-"]
["-"]
["-"]
["20203422",null,"TrumpoDumpo"]